Workbook

Sheet Notes Balance
A1: TOTAL NOTE BALANCES
B2: Total Notes | C2: Class A1 Notes | D2: Class A2 Notes | E2: Class B Notes | F2: Class C Notes
A3: Initial Invested Amount | B3: =SUM(C3:F3) -> 408900000 | C3: 189325000 | D3: 200000000 | E3: 10875000 | F3: 8700000
A4: Invested Amount as at Previous Payment Date: 17 August 2020 | B4: =SUM(C4:F4) -> 408900000 | C4: 189325000 | D4: 200000000 | E4: 10875000 | F4: 8700000
A5: Stated Amount as at Previous Payment Date: 17 August 2020 | B5: 408900000 | C5: 189325000 | D5: 200000000 | E5: 10875000 | F5: 8700000
A6: Principal Payments to Noteholders on Payment Date | B6: 34777204.24 | C6: 34777204.24 | D6: 0 | E6: 0 | F6: 0
A7: Gross Aggregate Charge-Offs | B7: =SUM(C7:G7) -> 0 | C7: 0 | D7: 0 | E7: 0 | F7: 0
A8: Gross Aggregate Reinstatements of charge-offs | B8: 0 | C8: 0 | D8: 0 | E8: 0 | F8: 0
A9: Aggregate Charge-Offs for this Collection Period | B9: 0 | C9: 0 | D9: 0 | E9: 0 | F9: 0
A10: Reinstatements relating to Charge-offs that have occurred this Collection Period | B10: 0 | C10: 0 | D10: 0 | E10: 0 | F10: 0
A11: Aggregate Carry Over Charge-offs not previously reinstated | B11: 0 | C11: 0 | D11: 0 | E11: 0 | F11: 0
A12: Reinstatements of Carry Over Charge-offs not previously reinstated | B12: 0 | C12: 0 | D12: 0 | E12: 0 | F12: 0
A13: Aggregate Charge-Offs not reinstated and to be carried over to next period | B13: 0 | C13: 0 | D13: 0 | E13: 0 | F13: 0
A14: Invested Amount as at Payment Date: 16 November 2020 | B14: 374122795.8 | C14: 154547795.8 | D14: 200000000 | E14: 10875000 | F14: 8700000
A15: Stated Amount as at Payment Date: 16 November 2020 | B15: 374122795.8 | C15: 154547795.8 | D15: 200000000 | E15: 10875000 | F15: 8700000
A16: Bond Factor at Payment Date: 16 November 2020 | C16: 0.8163094983 | D16: 1 | E16: 1 | F16: 1
A17: Coupon Margin | C17: 0.0095 | D17: 0.011 | E17: 0 | F17: 0
A18: Coupon Rate (3 month BBSW + margin) | C18: 0.0105 | D18: 0.012 | E18: 0.001 | F18: 0.001
A19: Days in Coupon Period | C19: 91 | D19: 91 | E19: 91 | F19: 91
A20: Coupon Entitlement to be paid out on the current Payment Date: 16 November 2020 | C20: 495616.54 | D20: 598356.16 | E20: 2711.3 | F20: 2169.04
A24: TOTAL NOTE BALANCES
B25: Total Notes | C25: Class A1 Notes | D25: Class A2 Notes | E25: Class B Notes | F25: Class C Notes
A26: Initial Invested Amount | B26: =SUM(C26:G26) -> 408900000 | C26: 189325000 | D26: 200000000 | E26: 10875000 | F26: 8700000
A27: Invested Amount as at Previous Payment Date: 16 November 2020 | B27: =SUM(C27:G27) -> 374122795.8 | C27: 154547795.8 | D27: 200000000 | E27: 10875000 | F27: 8700000
A28: Stated Amount as at Previous Payment Date: 16 November 2020 | B28: 374122795.8 | C28: 154547795.8 | D28: 200000000 | E28: 10875000 | F28: 8700000
A29: Principal Payments to Noteholders on Payment Date | B29: 28459951.68 | C29: 28459951.68 | D29: 0 | E29: 0 | F29: 0
A30: Gross Aggregate Charge-Offs | B30: 0 | C30: 0 | D30: 0 | E30: 0 | F30: 0
A31: Gross Aggregate Reinstatements of charge-offs | B31: 0 | C31: 0 | D31: 0 | E31: 0 | F31: 0
A32: Aggregate Charge-Offs for this Collection Period | B32: 0 | C32: 0 | D32: 0 | E32: 0 | F32: 0
A33: Reinstatements relating to Charge-offs that have occurred this Collection Period | B33: =SUM(C33:G33) -> 0 | C33: 0 | D33: 0 | E33: 0 | F33: 0
A34: Aggregate Carry Over Charge-offs not previously reinstated | B34: 0 | C34: 0 | D34: 0 | E34: 0 | F34: 0
A35: Reinstatements of Carry Over Charge-offs not previously reinstated | B35: 0 | C35: 0 | D35: 0 | E35: 0 | F35: 0
A36: Aggregate Charge-Offs not reinstated and to be carried over to next period | B36: 0 | C36: 0 | D36: 0 | E36: 0 | F36: 0
A37: Invested Amount as at Payment Date: 16 February 2021 | B37: 345662844.1 | C37: 126087844.1 | D37: 200000000 | E37: 10875000 | F37: 8700000
A38: Stated Amount as at Payment Date: 16 February 2021 | B38: 345662844.1 | C38: 126087844.1 | D38: 200000000 | E38: 10875000 | F38: 8700000
A39: Bond Factor at Payment Date: 16 February 2021 | C39: 0.6659862357 | D39: 1 | E39: 1 | F39: 1
A40: Coupon Margin | C40: 0.0095 | D40: 0.011 | E40: 0 | F40: 0
A41: Coupon Rate (3 month BBSW + margin) | C41: 0.0097 | D41: 0.0112 | E41: 0.0002 | F41: 0.0002
A42: Days in Coupon Period | C42: 92 | D42: 92 | E42: 92 | F42: 92
A43: Coupon Entitlement to be paid out on the current Payment Date: 16 February 2021 | C43: 377858.78 | D43: 564602.74 | E43: 548.22 | F43: 438.58
A47: TOTAL NOTE BALANCES
B48: Total Notes | C48: Class A1 Notes | D48: Class A2 Notes | E48: Class B Notes | F48: Class C Notes
A49: Initial Invested Amount | B49: =SUM(C49:F49) -> 408900000 | C49: 189325000 | D49: 200000000 | E49: 10875000 | F49: 8700000
A50: Invested Amount as at Previous Payment Date: 16 February 2021 | B50: =SUM(C50:F50) -> 345662844.1 | C50: 126087844.1 | D50: 200000000 | E50: 10875000 | F50: 8700000
A51: Stated Amount as at Previous Payment Date: 16 February 2021 | B51: 345662844.1 | C51: 126087844.1 | D51: 200000000 | E51: 10875000 | F51: 8700000
A52: Principal Payments to Noteholders on Payment Date | B52: 62919663.53 | C52: 62919663.53 | D52: 0 | E52: 0 | F52: 0
A53: Gross Aggregate Charge-Offs | B53: 0 | C53: =+D53 -> 0 | D53: 0 | E53: 0 | F53: 0
A54: Gross Aggregate Reinstatements of charge-offs | B54: 0 | C54: 0 | D54: 0 | E54: 0 | F54: 0
A55: Aggregate Charge-Offs for this Collection Period | B55: 0 | C55: 0 | D55: 0 | E55: 0 | F55: 0
A56: Reinstatements relating to Charge-offs that have occurred this Collection Period | B56: 0 | C56: 0 | D56: 0 | E56: 0 | F56: 0
A57: Aggregate Carry Over Charge-offs not previously reinstated | B57: 0 | C57: 0 | D57: 0 | E57: 0 | F57: 0
A58: Reinstatements of Carry Over Charge-offs not previously reinstated | B58: 0 | C58: 0 | D58: 0 | E58: 0 | F58: 0
A59: Aggregate Charge-Offs not reinstated and to be carried over to next period | B59: =SUM(C59:F59) -> 0 | C59: 0 | D59: 0 | E59: 0 | F59: 0
A60: Invested Amount as at Payment Date: 17 May 2021 | B60: =SUM(C60:F60) -> 282743180.5 | C60: 63168180.55 | D60: 200000000 | E60: 10875000 | F60: 8700000
A61: Stated Amount as at Payment Date: 17 May 2021 | B61: =SUM(C61:F61) -> 282743180.5 | C61: 63168180.55 | D61: 200000000 | E61: 10875000 | F61: 8700000
A62: Bond Factor at Payment Date: 17 May 2021 | C62: 0.3336494417 | D62: 1 | E62: 1 | F62: 1
A63: Coupon Margin | C63: 0.0095 | D63: 0.011 | E63: 0 | F63: 0
A64: Coupon Rate (3 month BBSW + margin) | C64: 0.009603 | D64: 0.011103 | E64: 0.000103 | F64: 0.000103
A65: Days in Coupon Period | C65: 90 | D65: 90 | E65: 90 | F65: 90
A66: Coupon Entitlement to be paid out on the current Payment Date: 17 May 2021 | C66: 298558.74 | D66: 547545.21 | E66: 276.2 | F66: 220.96
A70: TOTAL NOTE BALANCES
B71: Total Notes | C71: Class A1 Notes | D71: Class A2 Notes | E71: Class B Notes | F71: Class C Notes
A72: Initial Invested Amount | B72: =SUM(C72:G72) -> 408900000 | C72: 189325000 | D72: 200000000 | E72: 10875000 | F72: 8700000
A73: Invested Amount as at Previous Payment Date: 17 May 2021 | B73: =SUM(C73:G73) -> 282743180.5 | C73: 63168180.55 | D73: 200000000 | E73: 10875000 | F73: 8700000
A74: Stated Amount as at Previous Payment Date: 17 May 2021 | B74: 282743180.5 | C74: 63168180.55 | D74: 200000000 | E74: 10875000 | F74: 8700000
A75: Principal Payments to Noteholders on Payment Date | B75: 22830302.51 | C75: 22830302.51 | D75: 0 | E75: 0 | F75: 0
A76: Gross Aggregate Charge-Offs | B76: =SUM(C76:G76) -> 0 | C76: 0 | D76: 0 | E76: 0 | F76: 0
A77: Gross Aggregate Reinstatements of charge-offs | B77: 0 | C77: 0 | D77: 0 | E77: 0 | F77: 0
A78: Aggregate Charge-Offs for this Collection Period | B78: 0 | C78: 0 | D78: 0 | E78: 0 | F78: 0
A79: Reinstatements relating to Charge-offs that have occurred this Collection Period | B79: =SUM(C79:G79) -> 0 | C79: 0 | D79: 0 | E79: 0 | F79: 0
A80: Aggregate Carry Over Charge-offs not previously reinstated | B80: 0 | C80: 0 | D80: 0 | E80: 0 | F80: 0
A81: Reinstatements of Carry Over Charge-offs not previously reinstated | B81: 0 | C81: 0 | D81: 0 | E81: 0 | F81: 0
A82: Aggregate Charge-Offs not reinstated and to be carried over to next period | B82: 0 | C82: 0 | D82: 0 | E82: 0 | F82: 0
A83: Invested Amount as at Payment Date: 16 August 2021 | B83: 259912878 | C83: 40337878.04 | D83: 200000000 | E83: 10875000 | F83: 8700000
A84: Stated Amount as at Payment Date: 16 August 2021 | B84: 259912878 | C84: 40337878.04 | D84: 200000000 | E84: 10875000 | F84: 8700000
A85: Bond Factor at Payment Date: 16 August 2021 | C85: 0.2130615505 | D85: 1 | E85: 1 | F85: 1
A86: Coupon Margin | C86: 0.0095 | D86: 0.011 | E86: 0 | F86: 0
A87: Coupon Rate (3 month BBSW + margin) | C87: 0.009894 | D87: 0.011394 | E87: 0.000394 | F87: 0.000394
A88: Days in Coupon Period | C88: 91 | D88: 91 | E88: 91 | F88: 91
A89: Coupon Entitlement to be paid out on the current Payment Date: 16 August 2021 | C89: 155818.42 | D89: 568139.18 | E89: 1068.25 | F89: 854.6

Sheet Cumulative Defaults
A1: Cumulative Defaults & Losses
A3: Month | B3: Gross Losses | C3: Recoveries | D3: Net Losses
A4: 2020-10-01 | B4: 0 | C4: 0 | D4: =+B4-C4 -> 0
A5: 2021-01-01 | B5: 0 | C5: 0 | D5: =+B5-C5 -> 0
A6: 2021-04-01 | B6: 0.0004145025517 | C6: 0 | D6: =+B6-C6 -> 0.0004145025517
A7: 2021-07-01 | B7: =+B6+'Collateral Tables '!E9/435000000 -> 0.002166107655 | C7: =+C6+'Collateral Tables '!E23/435000000 -> 0.0004436071034 | D7: =+B7-C7 -> 0.001722500552

Sheet Collateral Tables
B1: CNHI CAPITAL AUSTRALIA RECEIVABLES TRUST SERIES 2020-1 (TERM DEAL)
B2: COLLATERAL DATA TABLES
B4: OUTSTANDING RECEIVABLES | E4: 2021-07-31 | I4: 2021-04-30 | M4: 2021-01-31 | Q4: 2020-10-31
B6: Opening Balance | E6: =I13 -> 308843180.6 | I6: 371762844.1 | M6: 400222795.8 | Q6: 434999973.2
B7: Principal Repayments - Scheduled | E7: =MIN(([2]Sheet1!$B$3+[3]Sheet1!$B$3+[4]Sheet1!$B$3),'[1]16 Aug 21'!$H$23) -> 18901918.63 | I7: 59828601.88 | M7: 25136419.83 | Q7: 26305441.5
B8: Principal Repayments - Unscheduled | E8: ='[1]16 Aug 21'!$H$23-'Collateral Tables '!E7 -> 3472716.41 | I8: 2910753.04 | M8: 3323531.85 | Q8: 8471735.94
A9: =SUM(E9:Q9) -> 942256.83 | B9: Charge-Offs | E9: ='[1]16 Aug 21'!$H$37 -> 761948.22 | I9: 180308.61 | M9: 0 | Q9: 0
B10: Reinstatements
B11: New Receivables Purchased
B12: Non Cash Change in Receivables
B13: Closing Balance | E13: =E6-E7-E8-E9+E10+E11-E12 -> 285706597.3 | I13: 308843180.6 | M13: 371762844.1 | Q13: 400222795.8
B15: PORTFOLIO STATISTICS
B17: Summary
B18: Number of contracts | E18: =[5]Summary!$B$4 -> 3089 | I18: 3260 | M18: 3379 | Q18: 3459
B19: Dollar value of contracts | E19: =[5]Summary!$B$5 -> 285706597.3 | I19: 308843180.5 | M19: 371762844.1 | Q19: 400222795.8
B20: Number of contracts closed during the Quarter | E20: =[5]Summary!$B$19 -> 169 | I20: 118 | M20: 80 | Q20: 81
B21: Dollar value of contracts closed during the Quarter | E21: =[5]Summary!$B$20 -> 6346762.2 | I21: 8489230.94 | M21: 6207942.72 | Q21: 11089284.78
A23: =SUM(E23:Q23) -> 192969.09 | B23: Dollar Value of Recoveries from Collateral | E23: =[5]Summary!$C$16 -> 192969.09 | I23: 0 | M23: 0 | Q23: 0
A24: =SUM(E24:Q24) -> 0 | B24: Dollar Value of Recoveries from Other Sources | E24: 0 | I24: 0 | M24: 0 | Q24: 0
B26: Average Term of Contracts (Months) | E26: =[6]Sheet1!$W$3091 -> 55.73999239 | I26: 55.45583889 | M26: 54.83671258 | Q26: 54.45878773
B27: Average Term to Maturity (Months) | E27: =[6]Sheet1!$X$3091 -> 32.57407875 | I27: 34.94562877 | M27: 36.78524888 | Q27: 39.32011075
B28: Average Residual / Balloon Payment * | E28: =[6]Sheet1!$AI$3091 -> 0.03718121089 | I28: 0.03880945952 | M28: 0.03738139172 | Q28: 0.0375541485
B29: Average Seasoning (Months) | E29: =E26-E27 -> 23.16591364 | I29: 20.51021012 | M29: 18.0514637 | Q29: 15.13867698
B30: Average Dollar Value of Individual Assets | E30: =E19/E18 -> 92491.61453 | I30: 94737.17195 | M30: 110021.5579 | Q30: 115704.7689
B31: Weighted Average Interest Rate | E31: =[6]Sheet1!$AA$3091/100 -> 0.02270699089 | I31: 0.02273150474 | M31: 0.02272660821 | Q31: 0.02279313753
B33: Payment in Arrears
A34: 1. 0 - 30 Days | B34: 0 - 30 Days | E34: =IFERROR(VLOOKUP($A34,'[7]Arrears Reporting'!$A$1:$D$8,3,FALSE),0) -> 3088 | F34: =IFERROR(VLOOKUP($A34,'[7]Arrears Reporting'!$A$1:$D$8,2,FALSE),0) -> 1243.82 | G34: =F34/F$50 -> 4.35348715e-06 | I34: 3244 | J34: 96795.25 | K34: 0.000313412295 | M34: 3368 | N34: 669139.27 | O34: 0.001799908949 | Q34: 3448 | R34: 608582.11 | S34: 0.001520608312
A35: 2. 31 - 60 Days | B35: 31 - 60 Days | E35: =IFERROR(VLOOKUP($A35,'[7]Arrears Reporting'!$A$1:$D$8,3,FALSE),0) -> 1 | F35: =IFERROR(VLOOKUP($A35,'[7]Arrears Reporting'!$A$1:$D$8,2,FALSE),0) -> 31314.59 | G35: 0.0001096040144 | I35: 10 | J35: 74360.21 | K35: 0.0002407701212 | M35: 3 | N35: 77257.8 | O35: 0.0002078147433 | Q35: 8 | R35: 239593.93 | S35: 0.0005986513825
A36: 3. 61 - 90 Days | B36: 61 - 90 Days | E36: =IFERROR(VLOOKUP($A36,'[7]Arrears Reporting'!$A$1:$D$8,3,FALSE),0) -> 0 | F36: =IFERROR(VLOOKUP($A36,'[7]Arrears Reporting'!$A$1:$D$8,2,FALSE),0) -> 0 | G36: 0 | I36: 2 | J36: 37814.99 | K36: 0.0001224407479 | M36: 4 | N36: 131816.78 | O36: 0.0003545722282 | Q36: 2 | R36: 134580.25 | S36: 0.0003362633299
A37: 4. 91 - 120 Days | B37: 91 - 120 Days | E37: =IFERROR(VLOOKUP($A37,'[7]Arrears Reporting'!$A$1:$D$8,3,FALSE),0) -> 0 | F37: =IFERROR(VLOOKUP($A37,'[7]Arrears Reporting'!$A$1:$D$8,2,FALSE),0) -> 0 | G37: 0 | I37: 2 | J37: 115620.05 | K37: 0.0003743649116 | M37: 2 | N37: 41551.66 | O37: 0.0001117692654 | Q37: 1 | R37: 5840.85 | S37: 1.45939963e-05
A38: 5. 121 - 150 Days | B38: 121 - 150 Days | E38: =IFERROR(VLOOKUP($A38,'[7]Arrears Reporting'!$A$1:$D$8,3,FALSE),0) -> 0 | F38: =IFERROR(VLOOKUP($A38,'[7]Arrears Reporting'!$A$1:$D$8,2,FALSE),0) -> 0 | G38: 0 | I38: 0 | J38: 0 | K38: 0 | M38: 2 | N38: 3518.85 | O38: 9.465308478e-06 | Q38: 0 | R38: 0 | S38: 0
A39: 6. 151 - 180 Days | B39: 151 - 180 Days | E39: =IFERROR(VLOOKUP($A39,'[7]Arrears Reporting'!$A$1:$D$8,3,FALSE),0) -> 0 | F39: =IFERROR(VLOOKUP($A39,'[7]Arrears Reporting'!$A$1:$D$8,2,FALSE),0) -> 0 | G39: 0 | I39: 2 | J39: 122531.52 | K39: 0.0003967434857 | M39: 0 | N39: 0 | O39: 0 | Q39: 0 | R39: 0 | S39: 0
B40: Total | E40: =SUM(E34:E39) -> 3089 | F40: =SUM(F34:F39) -> 32558.41 | G40: =SUM(G34:G39) -> 0.0001139575015 | I40: 3260 | J40: 447122.02 | K40: 0.001447731561 | M40: 3379 | N40: 923284.36 | O40: 0.002483530495 | Q40: 3459 | R40: 988597.14 | S40: 0.002470117021
B41: * Expressed as a % of Aggreg. Rec. closing bal. | F41: > 30 days | G41: =SUM(G35:G39) -> 0.0001096040144 | J41: > 30 days | K41: 0.001134319266 | N41: > 30 days | O41: 0.0006836215454 | R41: > 30 days | S41: 0.0009495087087
A43: 0 - 30 Days | B43: Account Balances in Arrears
A44: 1. 0 - 30 Days | B44: 0 - 30 Days | E44: =IFERROR(VLOOKUP($A44,'[7]Arrears Reporting'!$A$1:$D$8,3,FALSE),0) -> 3088 | F44: =IFERROR(VLOOKUP($A44,'[7]Arrears Reporting'!$A$1:$D$8,4,FALSE),0) -> 285598376.7 | G44: =F44/F$50 -> 0.9996212176 | I44: 3244 | J44: 306751454.7 | K44: 0.9932272235 | M44: 3368 | N44: 370345507 | O44: 0.9961875236 | Q44: 3448 | R44: 398525593.3 | S44: 0.9957593559
A45: 2. 31 - 60 Days | B45: 31 - 60 Days | E45: =IFERROR(VLOOKUP($A45,'[7]Arrears Reporting'!$A$1:$D$8,3,FALSE),0) -> 1 | F45: =IFERROR(VLOOKUP($A45,'[7]Arrears Reporting'!$A$1:$D$8,4,FALSE),0) -> 108220.64 | G45: =F45/F$50 -> 0.0003787824328 | I45: 10 | J45: 955937.27 | K45: 0.003095218966 | M45: 3 | N45: 457915.85 | O45: 0.001231741841 | Q45: 8 | R45: 1107284.19 | S45: 0.002766669469
A46: 3. 61 - 90 Days | B46: 61 - 90 Days | E46: =IFERROR(VLOOKUP($A46,'[7]Arrears Reporting'!$A$1:$D$8,3,FALSE),0) -> 0 | F46: =IFERROR(VLOOKUP($A46,'[7]Arrears Reporting'!$A$1:$D$8,4,FALSE),0) -> 0 | G46: 0 | I46: 2 | J46: 219395.31 | K46: 0.0007103777056 | M46: 4 | N46: 653099.6 | O46: 0.001756764051 | Q46: 2 | R46: 543586.31 | S46: 0.001358209267
A47: 4. 91 - 120 Days | B47: 91 - 120 Days | E47: =IFERROR(VLOOKUP($A47,'[7]Arrears Reporting'!$A$1:$D$8,3,FALSE),0) -> 0 | F47: =IFERROR(VLOOKUP($A47,'[7]Arrears Reporting'!$A$1:$D$8,4,FALSE),0) -> 0 | G47: =F47/F$50 -> 0 | I47: 2 | J47: 348198.83 | K47: 0.001127429232 | M47: 2 | N47: 222711.16 | O47: 0.0005990678293 | Q47: 1 | R47: 46331.93 | S47: 0.0001157653449
A48: 5. 121 - 150 Days | B48: 121 - 150 Days | E48: =IFERROR(VLOOKUP($A48,'[7]Arrears Reporting'!$A$1:$D$8,3,FALSE),0) -> 0 | F48: =IFERROR(VLOOKUP($A48,'[7]Arrears Reporting'!$A$1:$D$8,4,FALSE),0) -> 0 | G48: =F48/F$50 -> 0 | I48: 0 | J48: 0 | K48: 0 | M48: 2 | N48: 83610.45 | O48: 0.0002249026532 | Q48: 0 | R48: 0 | S48: 0
A49: 6. 151 - 180 Days | B49: 151 - 180 Days | E49: =IFERROR(VLOOKUP($A49,'[7]Arrears Reporting'!$A$1:$D$8,3,FALSE),0) -> 0 | F49: =IFERROR(VLOOKUP($A49,'[7]Arrears Reporting'!$A$1:$D$8,4,FALSE),0) -> 0 | G49: =F49/F$50 -> 0 | I49: 2 | J49: 568194.44 | K49: 0.001839750643 | M49: 0 | N49: 0 | O49: 0 | Q49: 0 | R49: 0 | S49: 0
B50: Total | E50: =SUM(E44:E49) -> 3089 | F50: =SUM(F44:F49) -> 285706597.3 | G50: =SUM(G44:G49) -> 1 | I50: 3260 | J50: 308843180.5 | K50: 1 | M50: 3379 | N50: 371762844.1 | O50: 1 | Q50: 3459 | R50: 400222795.8 | S50: 1
A51: NSW | F51: > 30 days | G51: =SUM(G45:G49) -> 0.0003787824328 | J51: > 30 days | K51: 0.006772776547 | N51: > 30 days | O51: 0.003812476375 | R51: > 30 days | S51: 0.004240644081
F52: > 60 days | G52: =SUM(G46:G49) -> 0 | J52: > 60 days | K52: 0.003677557581 | N52: > 60 days | O52: 0.002580734534 | R52: > 60 days | S52: 0.001473974612
F53: >90 days | G53: =SUM(G47:G49) -> 0 | J53: >90 days | K53: 0.002967179875 | N53: >90 days | O53: 0.0008239704825 | R53: >90 days | S53: 0.0001157653449
A55: VIC | B55: Geographic Distribution
A56: NSW | B56: New South Wales | E56: =F56/F$64 -> 0.2462737399 | F56: =IFERROR(VLOOKUP($A56,'[7]Geographic '!$A$1:$C$10,3,FALSE),0) -> 70362032.22 | I56: 0.2499836063 | J56: 77205732.06 | M56: 0.2453388574 | N56: 91207871.4 | Q56: 0.2468596892 | R56: 98798874.96
A57: VIC | B57: Victoria | E57: =F57/F$64 -> 0.2171302888 | F57: =IFERROR(VLOOKUP($A57,'[7]Geographic '!$A$1:$C$10,3,FALSE),0) -> 62035555.97 | I57: 0.2223633599 | J57: 68675407.31 | M57: 0.2167722969 | N57: 80587885.6 | Q57: 0.2132303205 | R57: 85339635.01
A58: QLD | B58: Queensland | E58: 0.1123001044 | F58: =IFERROR(VLOOKUP($A58,'[7]Geographic '!$A$1:$C$10,3,FALSE),0) -> 32084880.69 | I58: 0.1163992287 | J58: 35949108 | M58: 0.105665049 | N58: 39282339.14 | Q58: 0.1091100648 | R58: 43668335.19
A59: SA | B59: South Australia | E59: 0.2056930499 | F59: =IFERROR(VLOOKUP($A59,'[7]Geographic '!$A$1:$C$10,3,FALSE),0) -> 58767861.36 | I59: 0.1997091935 | J59: 61678822.51 | M59: 0.2064773449 | N59: 76760604.97 | Q59: 0.2000584062 | R59: 80067934.64
A60: NT | B60: Northern Territory | E60: 0 | F60: =IFERROR(VLOOKUP($A60,'[7]Geographic '!$A$1:$C$10,3,FALSE),0) -> 0 | I60: 0 | J60: 0 | M60: 0 | N60: 0 | Q60: 0 | R60: 0
A61: ACT | B61: Australian Capital Territory | E61: 0.001271236658 | F61: =IFERROR(VLOOKUP($A61,'[7]Geographic '!$A$1:$C$10,3,FALSE),0) -> 363200.7 | I61: 0.001232919307 | J61: 380778.72 | M61: 0.001209769769 | N61: 449747.45 | Q61: 0.001139781704 | R61: 456166.62
A62: TAS | B62: Tasmania | E62: 0.01641080344 | F62: =IFERROR(VLOOKUP($A62,'[7]Geographic '!$A$1:$C$10,3,FALSE),0) -> 4688674.81 | I62: 0.01722191936 | J62: 5318872.35 | M62: 0.01571368759 | N62: 5841765.19 | Q62: 0.01579303582 | R62: 6320732.95
A63: WA | B63: Western Australia | E63: 0.2009207771 | F63: =IFERROR(VLOOKUP($A63,'[7]Geographic '!$A$1:$C$10,3,FALSE),0) -> 57404391.54 | I63: 0.1930897729 | J63: 59634459.6 | M63: 0.2088229945 | N63: 77632630.33 | Q63: 0.2138087018 | R63: 85571116.39
B64: Total | E64: =SUM(E56:E63) -> 1 | F64: =SUM(F56:F63) -> 285706597.3 | I64: 1 | J64: 308843180.5 | M64: 1 | N64: 371762844.1 | Q64: 1 | R64: 400222795.8
A65: AG | G65: =E13-F64 -> 1.430511475e-06 | K65: 1.549720764e-06 | O65: 1.490116119e-06 | S65: 1.430511475e-06
A66: CE | B66: Top Industry Distribution
A67: AGRICULTURAL MACHINERY | B67: Agricultural | E67: =F67/F$70 -> 0.9642865543 | F67: =IFERROR(VLOOKUP($A$67,'[7]Top Industry'!$A$1:$C$4,3,FALSE),) -> 275503030.2 | I67: 0.9614475039 | J67: 296936505 | M67: 0.963064997 | N67: 358031782.3 | Q67: 0.9615111519 | R67: 384818681.4
A68: CONSTRUCTION EQUIPMENT | B68: Construction | E68: =F68/F$70 -> 0.03571344571 | F68: =IFERROR(VLOOKUP($A$68,'[7]Top Industry'!$A$1:$C$4,3,FALSE),) -> 10203567.05 | I68: 0.03855249606 | J68: 11906675.5 | M68: 0.036935003 | N68: 13731061.76 | Q68: 0.03848884812 | R68: 15404114.4
A69: MOTOR VEHICLE - AG | B69: Motor Vehicle AG | E69: =F69/F$70 -> 0 | F69: =IFERROR(VLOOKUP($A$69,'[7]Top Industry'!$A$1:$C$4,3,FALSE),) -> 0 | I69: 0 | J69: 0 | M69: 0 | N69: 0 | Q69: 0 | R69: 0
B70: Total | E70: =SUM(E67:E69) -> 1 | F70: =SUM(F67:F69) -> 285706597.3 | G70: =F64-F70 -> -5.36441803e-07 | I70: 1 | J70: 308843180.5 | K70: 0 | M70: 1 | N70: 371762844.1 | O70: -7.152557373e-07 | Q70: 1 | R70: 400222795.8 | S70: -5.960464478e-07
A71: COMBINE
A72: 40-100 HP TRACTOR | B72: Collateral Types
A73: 100<140 HP TRACTOR | B73: 100<140 HP TRACTOR | E73: =IFERROR(F73/F$111,0) -> 0.1027149631 | F73: =IFERROR(VLOOKUP($A73,[7]Collateral!$A$1:$C$35,3,FALSE),"") -> 29346342.6 | I73: 0.1061666541 | J73: 32788847.12 | M73: 0.09971483579 | N73: 37070270.95 | Q73: 0.1004168551 | R73: 40189114.48
A74: 4 EWD TRACTORS | B74: 4 EWD TRACTORS | E74: 0.101741429 | F74: =IFERROR(VLOOKUP($A74,[7]Collateral!$A$1:$C$35,3,FALSE),"") -> 29068197.47 | I74: 0.09956622657 | J74: 30750350.09 | M74: 0.09974166383 | N74: 37080244.62 | Q74: 0.09774929935 | R74: 39121497.87
A75: 40<60 HP TRACTOR | B75: 40<60 HP TRACTOR | E75: 0.009639588991 | F75: =IFERROR(VLOOKUP($A75,[7]Collateral!$A$1:$C$35,3,FALSE),"") -> 2754094.17 | I75: 0.01000269245 | J75: 3089263.35 | M75: 0.009629846681 | N75: 3580019.19 | Q75: 0.009783323542 | R75: 3915509.1
A76: 4WD Vehicle | B76: 4WD Vehicle | E76: 0.003296312192 | F76: =IFERROR(VLOOKUP($A76,[7]Collateral!$A$1:$C$35,3,FALSE),"") -> 941778.14 | I76: 0.003049373272 | J76: 941778.14 | M76: 0.00312783356 | N76: 1162812.3 | Q76: 0.002905412466 | R76: 1162812.3
A77: 60<100 HP TRACTOR | B77: 60<100 HP TRACTOR | E77: 0.04762335819 | F77: =IFERROR(VLOOKUP($A77,[7]Collateral!$A$1:$C$35,3,FALSE),"") -> 13606307.62 | I77: 0.04900720645 | J77: 15135541.51 | M77: 0.04503198831 | N77: 16741220.05 | Q77: 0.04600663487 | R77: 18412904.03
A78: BACKHOE | B78: BACKHOE | E78: 0.0001102734074 | F78: =IFERROR(VLOOKUP($A78,[7]Collateral!$A$1:$C$35,3,FALSE),"") -> 31505.84 | I78: 0.0003426491717 | J78: 105824.86 | M78: 0.0003252984313 | N78: 120933.87 | Q78: 0.0003622858606 | R78: 144995.06
A79: BALERS, WINDROWERS, MOWERS, RAKES | B79: BALERS, WINDROWERS, MOWERS, RAKES | E79: 0.04065597694 | F79: =IFERROR(VLOOKUP($A79,[7]Collateral!$A$1:$C$35,3,FALSE),"") -> 11615680.83 | I79: 0.04099178589 | J79: 12660033.53 | M79: 0.04085804306 | N79: 15189502.29 | Q79: 0.04060595749 | R79: 16251429.83
A80: COMBINES | B80: COMBINES | E80: 0.311516673 | F80: =IFERROR(VLOOKUP($A80,[7]Collateral!$A$1:$C$35,3,FALSE),"") -> 89002368.63 | I80: 0.3053911599 | J80: 94317977.13 | M80: 0.3245691052 | N80: 120662733.7 | Q80: 0.3270829099 | R80: 130906036.7
A81: COMPACT TRACK LOADER | B81: COMPACT TRACK LOADER | E81: 0.004514472197 | F81: =IFERROR(VLOOKUP($A81,[7]Collateral!$A$1:$C$35,3,FALSE),"") -> 1289814.49 | I81: 0.004954302171 | J81: 1530102.44 | M81: 0.004838250833 | N81: 1798681.89 | Q81: 0.005216192436 | R81: 2087639.12
A82: COMPACT WHEEL LOADER | B82: COMPACT WHEEL LOADER | E82: 0.0006612280983 | F82: =IFERROR(VLOOKUP($A82,[7]Collateral!$A$1:$C$35,3,FALSE),"") -> 188917.23 | I82: 0.0006979696609 | J82: 215563.17 | M82: 0.0006511828007 | N82: 242085.57 | Q82: 0.0006708397993 | R82: 268485.38
A83: CRAWLER EXCAVATOR | B83: CRAWLER EXCAVATOR | E83: 0.006968033881 | F83: =IFERROR(VLOOKUP($A83,[7]Collateral!$A$1:$C$35,3,FALSE),"") -> 1990813.25 | I83: 0.007248052899 | J83: 2238511.71 | M83: 0.007287579093 | N83: 2709251.13 | Q83: 0.007480996964 | R83: 2994065.52
A84: CRAWLER DOZER | B84: CRAWLER DOZER | E84: 0.0001399267304 | F84: =IFERROR(VLOOKUP($A84,[7]Collateral!$A$1:$C$35,3,FALSE),"") -> 39977.99 | I84: 0.0002563402561 | J84: 79168.94 | M84: 0.0002129554937 | N84: 79168.94 | Q84: 0.0001978121707 | R84: 79168.94
A85: CULTIVATORS,SEEDERS, HARROWS | B85: CULTIVATORS,SEEDERS, HARROWS | E85: 0.01967203993 | F85: =IFERROR(VLOOKUP($A85,[7]Collateral!$A$1:$C$35,3,FALSE),"") -> 5620431.59 | I85: 0.01944014143 | J85: 6003955.11 | M85: 0.01931097417 | N85: 7179102.68 | Q85: 0.01860263278 | R85: 7445197.7
A86: DRILL | B86: DRILL | E86: 0.001024049647 | F86: =IFERROR(VLOOKUP($A86,[7]Collateral!$A$1:$C$35,3,FALSE),"") -> 292577.74 | I86: 0.001004748492 | J86: 310309.72 | M86: 0.0009583941367 | N86: 356295.33 | Q86: 0.0009203942502 | R86: 368362.76
A87: DUMP TRUCKS | B87: DUMP TRUCKS | E87: 8.53044355e-05 | F87: =IFERROR(VLOOKUP($A87,[7]Collateral!$A$1:$C$35,3,FALSE),"") -> 24372.04 | I87: 8.389128086e-05 | J87: 25909.25 | M87: 7.377455934e-05 | N87: 27426.64 | Q87: 7.227092086e-05 | R87: 28924.47
A88: EXCAVATORS / GRADERS | B88: EXCAVATORS / GRADERS | E88: 0.0002225320682 | F88: =IFERROR(VLOOKUP($A88,[7]Collateral!$A$1:$C$35,3,FALSE),"") -> 63578.88 | I88: 0.0003286310218 | J88: 101495.45 | M88: 0.0004116089126 | N88: 153020.9 | Q88: 0.0005266989343 | R88: 210796.92
A89: FEEDERS, MIXERS, WAGONS, BINS, FEED STORAGE | B89: FEEDERS, MIXERS, WAGONS, BINS, FEED STORAGE | E89: 0.001346877824 | F89: =IFERROR(VLOOKUP($A89,[7]Collateral!$A$1:$C$35,3,FALSE),"") -> 384811.88 | I89: 0.001292949416 | J89: 399318.61 | M89: 0.001205142814 | N89: 448027.32 | Q89: 0.001264330981 | R89: 506014.08
A90: FRONT END LOADER | B90: FRONT END LOADER | E90: 0.0007121409583 | F90: =IFERROR(VLOOKUP($A90,[7]Collateral!$A$1:$C$35,3,FALSE),"") -> 203463.37 | I90: 0.0007111457977 | J90: 219632.53 | M90: 0.0006504254361 | N90: 241804.01 | Q90: 0.0006438110541 | R90: 257667.86
A91: FRONTS | B91: FRONTS | E91: 0.003671054886 | F91: =IFERROR(VLOOKUP($A91,[7]Collateral!$A$1:$C$35,3,FALSE),"") -> 1048844.6 | I91: 0.003484319512 | J91: 1076108.32 | M91: 0.003793474153 | N91: 1410272.74 | Q91: 0.003778167926 | R91: 1512108.93
A92: GRADER | B92: GRADER | E92: 0 | F92: =IFERROR(VLOOKUP($A92,[7]Collateral!$A$1:$C$35,3,FALSE),"") ->  | I92: 0 | M92: 0 | Q92: 0
A93: HARVESTERS - Other | B93: HARVESTERS - Other | E93: 0.02018511905 | F93: =IFERROR(VLOOKUP($A93,[7]Collateral!$A$1:$C$35,3,FALSE),"") -> 5767021.68 | I93: 0.01923797559 | J93: 5941517.57 | M93: 0.02007184394 | N93: 7461965.79 | Q93: 0.01973731572 | R93: 7899323.68
A94: IRRIGATION EQUIPMENT | B94: IRRIGATION EQUIPMENT | E94: 0 | F94: =IFERROR(VLOOKUP($A94,[7]Collateral!$A$1:$C$35,3,FALSE),"") ->  | I94: 0 | M94: 0 | Q94: 0
A95: MATERIALS HANDLING EQUIPMENT | B95: MATERIALS HANDLING EQUIPMENT | E95: 0 | F95: =IFERROR(VLOOKUP($A95,[7]Collateral!$A$1:$C$35,3,FALSE),"") ->  | I95: 0 | M95: 0 | Q95: 0
A96: MIDI CRAWLER EXCAVATOR | B96: MIDI CRAWLER EXCAVATOR | E96: 0.001175694167 | F96: =IFERROR(VLOOKUP($A96,[7]Collateral!$A$1:$C$35,3,FALSE),"") -> 335903.58 | I96: 0.001270364589 | J96: 392343.44 | M96: 0.001210467606 | N96: 450006.88 | Q96: 0.001268061053 | R96: 507506.94
A97: MINI EXCAVATOR | B97: MINI EXCAVATOR | E97: 0.004453658551 | F97: =IFERROR(VLOOKUP($A97,[7]Collateral!$A$1:$C$35,3,FALSE),"") -> 1272439.63 | I97: 0.005133982843 | J97: 1585595.59 | M97: 0.004897305928 | N97: 1820636.38 | Q97: 0.005112327163 | R97: 2046069.87
A98: OTHER AG | B98: OTHER AG | E98: 0.01590393258 | F98: =IFERROR(VLOOKUP($A98,[7]Collateral!$A$1:$C$35,3,FALSE),"") -> 4543858.46 | I98: 0.01592751471 | J98: 4919104.3 | M98: 0.01628559128 | N98: 6054377.73 | Q98: 0.01618515102 | R98: 6477666.39
A99: OTHER CE | B99: OTHER CE | E99: 0 | F99: =IFERROR(VLOOKUP($A99,[7]Collateral!$A$1:$C$35,3,FALSE),"") ->  | I99: 0 | M99: 0 | Q99: 0
A100: OVER 140 HP TRACTOR | B100: OVER 140 HP TRACTOR | E100: 0.2162054813 | F100: =IFERROR(VLOOKUP($A100,[7]Collateral!$A$1:$C$35,3,FALSE),"") -> 61771332.37 | I100: 0.2171970679 | J100: 67079833.27 | M100: 0.2101487352 | N100: 78125491.48 | Q100: 0.2093803489 | R100: 83798788.62
A101: QUAD BIKES | B101: QUAD BIKES | E101: 2.986077354e-05 | F101: =IFERROR(VLOOKUP($A101,[7]Collateral!$A$1:$C$35,3,FALSE),"") -> 8531.42 | I101: 3.028896407e-05 | J101: 9354.54 | M101: 2.734829519e-05 | N101: 10167.08 | Q101: 2.740765922e-05 | R101: 10969.17
A102: ROLLER | B102: ROLLER | E102: 0.004603298182 | F102: =IFERROR(VLOOKUP($A102,[7]Collateral!$A$1:$C$35,3,FALSE),"") -> 1315192.66 | I102: 0.004558580499 | J102: 1407886.5 | M102: 0.004033860333 | N102: 1499639.39 | Q102: 0.003973940532 | R102: 1590461.59
A103: SCRAPERS | B103: SCRAPERS | E103: 0 | F103: =IFERROR(VLOOKUP($A103,[7]Collateral!$A$1:$C$35,3,FALSE),"") ->  | I103: 0 | M103: 0 | Q103: 0
A104: SKID STEER LOADER | B104: SKID STEER LOADER | E104: 0.009463617416 | F104: =IFERROR(VLOOKUP($A104,[7]Collateral!$A$1:$C$35,3,FALSE),"") -> 2703817.93 | I104: 0.01005187229 | J104: 3104452.21 | M104: 0.009460549988 | N104: 3517080.97 | Q104: 0.009863190532 | R104: 3947473.69
A105: SKIDSTEER / UNILOADER | B105: SKIDSTEER / UNILOADER | E105: 0.0002375650428 | F105: =IFERROR(VLOOKUP($A105,[7]Collateral!$A$1:$C$35,3,FALSE),"") -> 67873.9 | I105: 0.0003630961182 | J105: 112139.76 | M105: 0.0004277361832 | N105: 159016.42 | Q105: 0.0004905218345 | R105: 196318.02
A106: SPRAYING EQUIPMENT | B106: SPRAYING EQUIPMENT | E106: 0.06692948991 | F106: =IFERROR(VLOOKUP($A106,[7]Collateral!$A$1:$C$35,3,FALSE),"") -> 19122196.82 | I106: 0.0675041278 | J106: 20848189.53 | M106: 0.06662117642 | N106: 24767278.02 | Q106: 0.06511955632 | R106: 26062330.89
A107: Telehandlers | B107: Telehandlers | E107: 0.0006030063066 | F107: =IFERROR(VLOOKUP($A107,[7]Collateral!$A$1:$C$35,3,FALSE),"") -> 172282.88 | I107: 0.0006371263877 | J107: 196772.14 | M107: 0.0005925622571 | N107: 220292.63 | Q107: 0.0005504249941 | R107: 220292.63
A108: UNDER 40 HP TRACTORS | B108: UNDER 40 HP TRACTORS | E108: 0.0008151998316 | F108: =IFERROR(VLOOKUP($A108,[7]Collateral!$A$1:$C$35,3,FALSE),"") -> 232907.97 | I108: 0.0008049992866 | J108: 248618.54 | M108: 0.0007260124682 | N108: 269904.46 | Q108: 0.0007512175298 | R108: 300654.38
A109: WHEEL LOADERS | B109: WHEEL LOADERS | E109: 0.002944603863 | F109: =IFERROR(VLOOKUP($A109,[7]Collateral!$A$1:$C$35,3,FALSE),"") -> 841292.75 | I109: 0.00304746894 | J109: 941190 | M109: 0.002845774468 | N109: 1057953.21 | Q109: 0.002932891635 | R109: 1173810.09
A110: WHEEL LOADERS (OLD) | B110: WHEEL LOADERS (OLD) | E110: 0.0001332376654 | F110: =IFERROR(VLOOKUP($A110,[7]Collateral!$A$1:$C$35,3,FALSE),"") -> 38066.88 | I110: 0.0002152943118 | J110: 66492.18 | M110: 0.0002586583666 | N110: 96159.57 | Q110: 0.0003208182826 | R110: 128398.79
B111: Total | E111: =SUM(E73:E109) -> 0.9998667623 | F111: =SUM(F73:F110) -> 285706597.3 | G111: =F70-F111 -> 0 | I111: 0.9997847057 | J111: 308843180.6 | K111: 0 | M111: 0.9997413416 | N111: 371762844.1 | O111: 7.748603821e-07 | Q111: 0.9996791817 | R111: 400222795.8 | S111: 7.152557373e-07
A112: $ 0 - $25,000
A113: $ 25,001 to $50,000 | B113: Contract Balance Distribution
A114: $0 - $25,000 | B114: $ 0 - $25,000 | E114: =IFERROR(F114/F$125,0) -> 0.03910403615 | F114: =IFERROR(VLOOKUP($A114,'[7] Balance Distribution'!$A$1:$C$17,3,FALSE),"") -> 11172281.11 | I114: 0.03466676778 | J114: 10706594.82 | M114: 0.02605153432 | N114: 9684992.49 | Q114: 0.02257445859 | R114: 9034812.93
A115: $25,001 - $50,000 | B115: $ 25,001 to $50,000 | E115: =IFERROR(F115/F$125,0) -> 0.08579394541 | F115: =IFERROR(VLOOKUP($A115,'[7] Balance Distribution'!$A$1:$C$17,3,FALSE),"") -> 24511896.21 | I115: 0.08657750675 | J115: 26738872.55 | M115: 0.07662445374 | N115: 28486124.85 | Q115: 0.07303334253 | R115: 29229608.53
A116: $50,001 - $75,000 | B116: $ 50,001 to $75,000 | E116: 0.08839739922 | F116: =IFERROR(VLOOKUP($A116,'[7] Balance Distribution'!$A$1:$C$17,3,FALSE),"") -> 25255720.14 | I116: 0.08717357285 | J116: 26922963.5 | M116: 0.07407748531 | N116: 27539256.62 | Q116: 0.07495608116 | R116: 29999132.36
A117: $75,001 - $100,000 | B117: $ 75,001 to $100,000 | E117: 0.0815357116 | F117: =IFERROR(VLOOKUP($A117,'[7] Balance Distribution'!$A$1:$C$17,3,FALSE),"") -> 23295290.72 | I117: 0.07951136216 | J117: 24556541.98 | M117: 0.06599231682 | N117: 24533491.39 | Q117: 0.06386413903 | R117: 25559884.27
A118: $100,001 - $125,000 | B118: $100,001 to $125,000 | E118: 0.084319463 | F118: =IFERROR(VLOOKUP($A118,'[7] Balance Distribution'!$A$1:$C$17,3,FALSE),"") -> 24090626.86 | I118: 0.08240835431 | J118: 25451258.25 | M118: 0.05910484272 | N118: 21972984.43 | Q118: 0.05839619644 | R118: 23371489
A119: $125,001 - $150,000 | B119: $125,001 to $150,000 | E119: 0.08169897105 | F119: =IFERROR(VLOOKUP($A119,'[7] Balance Distribution'!$A$1:$C$17,3,FALSE),"") -> 23341935.02 | I119: 0.07717557891 | J119: 23835151.25 | M119: 0.06420850475 | N119: 23870336.34 | Q119: 0.06537334976 | R119: 26163904.81
A120: $150,001 - $200,000 | B120: $150,000 to $200,000 | E120: 0.1183260395 | F120: =IFERROR(VLOOKUP($A120,'[7] Balance Distribution'!$A$1:$C$17,3,FALSE),"") -> 33806530.13 | I120: 0.1220802731 | J120: 37703659.83 | M120: 0.1237549208 | N120: 46007481.34 | Q120: 0.1171737937 | R120: 46895623.29
A121: $200,001 - $300,000 | B121: $200,001 to $300,000 | E121: 0.1994310405 | F121: =IFERROR(VLOOKUP($A121,'[7] Balance Distribution'!$A$1:$C$17,3,FALSE),"") -> 56978763.98 | I121: 0.1968957181 | J121: 60809899.8 | M121: 0.1938560946 | N121: 72068493.07 | Q121: 0.1875042323 | R121: 75043468.06
A122: $300,001 - $400,000 | B122: $300,001 to $400,000 | E122: 0.1223558336 | F122: =IFERROR(VLOOKUP($A122,'[7] Balance Distribution'!$A$1:$C$17,3,FALSE),"") -> 34957868.88 | I122: 0.1297541494 | J122: 40073684.2 | M122: 0.1597930222 | N122: 59405108.4 | Q122: 0.1584696051 | R122: 63423148.41
A123: $400,001 - $500,000 | B123: $400,001 to $500,000 | E123: 0.0630165873 | F123: =IFERROR(VLOOKUP($A123,'[7] Balance Distribution'!$A$1:$C$17,3,FALSE),"") -> 18004254.73 | I123: 0.05939240108 | J123: 18342938.05 | M123: 0.07240553438 | N123: 26917687.39 | Q123: 0.08834049256 | R123: 35355878.91
A124: $500,001+ | B124: $500,000+ | E124: 0.03602097259 | F124: =IFERROR(VLOOKUP($A124,'[7] Balance Distribution'!$A$1:$C$17,3,FALSE),"") -> 10291429.51 | I124: 0.04436431556 | J124: 13701616.32 | M124: 0.08413129031 | N124: 31276887.76 | Q124: 0.09031430886 | R124: 36145845.19
A125: $200,001 to $300,000 | B125: Total | E125: =SUM(E114:E124) -> 1 | F125: =SUM(F114:F124) -> 285706597.3 | G125: =F111-F125 -> 0 | I125: 1 | J125: 308843180.6 | K125: 0 | M125: 1 | N125: 371762844.1 | O125: 0 | Q125: 1 | R125: 400222795.8 | S125: 0
A126: 0
A127: 0 to 5 | B127: Residual / Balloon Payment Distribution
A128: 0 | B128: 0 | E128: =IFERROR(F128/F$138,0) -> 0.8753944604 | F128: =IFERROR(VLOOKUP($A128,'[7]Residual '!$A$1:$C$14,3,FALSE),"") -> 250105972.6 | I128: 0.8721302628 | J128: 269351484.2 | M128: 0.8795350556 | N128: 326978453.7 | Q128: 0.8807806998 | R128: 352508514.1
A129: 0 to 5 | B129: 0 to 5 | E129: =IFERROR(F129/F$138,0) -> 0.0003903150682 | F129: =IFERROR(VLOOKUP($A129,'[7]Residual '!$A$1:$C$14,3,FALSE),"") -> 111515.59 | I129: 0.0003683462261 | J129: 113761.22 | M129: 0.0003120051717 | N129: 115991.93 | Q129: 0.0002953550404 | R129: 118207.82
A130: 6 to 10 | B130: 06 to 10 | E130: 0.001031009304 | F130: =IFERROR(VLOOKUP($A130,'[7]Residual '!$A$1:$C$14,3,FALSE),"") -> 294566.16 | I130: 0.001002730089 | J130: 309686.35 | M130: 0.0008735784255 | N130: 324764 | Q130: 0.0008490252769 | R130: 339799.27
A131: 11 to 15 | B131: 11 to 15 | E131: 0.00544528588 | F131: =IFERROR(VLOOKUP($A131,'[7]Residual '!$A$1:$C$14,3,FALSE),"") -> 1555754.1 | I131: 0.00528789474 | J131: 1633130.23 | M131: 0.004952886173 | N131: 1841299.05 | Q131: 0.004854227697 | R131: 1942772.58
A132: 16 to 20 | B132: 16 to 20 | E132: 0.01467282649 | F132: =IFERROR(VLOOKUP($A132,'[7]Residual '!$A$1:$C$14,3,FALSE),"") -> 4192123.33 | I132: 0.01394370244 | J132: 4306417.41 | M132: 0.01292833035 | N132: 4806272.86 | Q132: 0.01286476691 | R132: 5148772.98
A133: 21 to 25 | B133: 21 to 25 | E133: 0.01556812752 | F133: =IFERROR(VLOOKUP($A133,'[7]Residual '!$A$1:$C$14,3,FALSE),"") -> 4447916.74 | I133: 0.01511540939 | J133: 4668291.11 | M133: 0.01401280322 | N133: 5209439.58 | Q133: 0.01399708395 | R133: 5601952.07
A134: 26 to 30 | B134: 26 to 30 | E134: 0.04033996425 | F134: =IFERROR(VLOOKUP($A134,'[7]Residual '!$A$1:$C$14,3,FALSE),"") -> 11525393.92 | I134: 0.04221178942 | J134: 13036823.3 | M134: 0.03974818916 | N134: 14776899.85 | Q134: 0.03871036374 | R134: 15492770
A135: 31 to 35 | B135: 31 to 35 | E135: 0.01479366252 | F135: =IFERROR(VLOOKUP($A135,'[7]Residual '!$A$1:$C$14,3,FALSE),"") -> 4226646.98 | I135: 0.01424096748 | J135: 4398225.69 | M135: 0.01249323907 | N135: 4644522.09 | Q135: 0.01210334209 | R135: 4844033.41
A136: 36 to 40 | B136: 36 to 40 | E136: 0.02397652387 | F136: =IFERROR(VLOOKUP($A136,'[7]Residual '!$A$1:$C$14,3,FALSE),"") -> 6850251.05 | I136: 0.02551032953 | J136: 7878691.31 | M136: 0.02301752716 | N136: 8557061.36 | Q136: 0.02168696514 | R136: 8679617.82
A137: 41+ % | B137: 41+% | E137: 0.008387824687 | F137: =IFERROR(VLOOKUP($A137,'[7]Residual '!$A$1:$C$14,3,FALSE),"") -> 2396456.85 | I137: 0.01018856788 | J137: 3146669.71 | M137: 0.01212638566 | N137: 4508139.62 | Q137: 0.01385817037 | R137: 5546355.69
E138: =SUM(E128:E137) -> 1 | F138: =SUM(F128:F137) -> 285706597.3 | G138: =F125-F138 -> 0 | I138: 1 | J138: 308843180.5 | K138: 0 | M138: 1 | N138: 371762844.1 | O138: 0 | Q138: 1 | R138: 400222795.8 | S138: -6.556510925e-07
A139: 2004 Q1
A140: 2004 Q2 | B140: Quarter of Maturity Distribution
A141: =RIGHT(B141,2)&LEFT(B141,4) -> Q32020 | B141: 2020Q3 | E141: =F141/F$166 -> 0 | F141: =IFERROR(VLOOKUP($A141,'[7]Quarter of Maturity Dist'!$A$1:$C$27,3,FALSE),0) -> 0 | I141: 0 | J141: 0 | M141: 0 | N141: 0 | Q141: 0.001227037203 | R141: 491088.26
A142: Q42020 | B142: 2020Q4 | E142: 0 | F142: =IFERROR(VLOOKUP($A142,'[7]Quarter of Maturity Dist'!$A$1:$C$27,3,FALSE),0) -> 0 | I142: 0 | J142: 0 | M142: 0.0006553959705 | N142: 243651.87 | Q142: 0.002492662438 | R142: 997620.33
A143: Q12021 | B143: 2021Q1 | E143: 0 | F143: =IFERROR(VLOOKUP($A143,'[7]Quarter of Maturity Dist'!$A$1:$C$27,3,FALSE),0) -> 0 | I143: 0 | J143: 0 | M143: 0.007334991496 | N143: 2726877.3 | Q143: 0.008542613055 | R143: 3418948.48
A144: Q22021 | B144: 2021Q2 | E144: 0 | F144: =IFERROR(VLOOKUP($A144,'[7]Quarter of Maturity Dist'!$A$1:$C$27,3,FALSE),0) -> 0 | I144: 0.007206934069 | J144: 2225812.44 | M144: 0.009078400501 | N144: 3375011.99 | Q144: 0.01049645431 | R144: 4200920.29
A145: Q32021 | B145: 2021Q3 | E145: 0.001295380308 | F145: =IFERROR(VLOOKUP($A145,'[7]Quarter of Maturity Dist'!$A$1:$C$27,3,FALSE),0) -> 370098.7 | I145: 0.003766368576 | J145: 1163217.25 | M145: 0.005341585211 | N145: 1985802.91 | Q145: 0.006317486427 | R145: 2528402.08
A146: Q42021 | B146: 2021Q4 | E146: 0.007301813748 | F146: =IFERROR(VLOOKUP($A146,'[7]Quarter of Maturity Dist'!$A$1:$C$27,3,FALSE),0) -> 2086176.36 | I146: 0.008609396961 | J146: 2658953.54 | M146: 0.009218635172 | N146: 3427146.03 | Q146: 0.01089744254 | R146: 4361404.92
A147: Q12022 | B147: 2022Q1 | E147: 0.02458970166 | F147: =IFERROR(VLOOKUP($A147,'[7]Quarter of Maturity Dist'!$A$1:$C$27,3,FALSE),0) -> 7025439.99 | I147: 0.02420511328 | J147: 7475584.17 | M147: 0.0340665661 | N147: 12664683.5 | Q147: 0.03569149607 | R147: 14284550.34
A148: Q22022 | B148: 2022Q2 | E148: 0.01365065601 | F148: =IFERROR(VLOOKUP($A148,'[7]Quarter of Maturity Dist'!$A$1:$C$27,3,FALSE),0) -> 3900082.48 | I148: 0.01707007006 | J148: 5271974.73 | M148: 0.01829226548 | N148: 6800384.64 | Q148: 0.01837221859 | R148: 7352980.69
A149: Q32022 | B149: 2022Q3 | E149: 0.01443238665 | F149: =IFERROR(VLOOKUP($A149,'[7]Quarter of Maturity Dist'!$A$1:$C$27,3,FALSE),0) -> 4123428.08 | I149: 0.01565689856 | J149: 4835526.35 | M149: 0.0154577066 | N149: 5746600.97 | Q149: 0.01605490766 | R149: 6425540.03
A150: Q42022 | B150: 2022Q4 | E150: 0.01789765745 | F150: =IFERROR(VLOOKUP($A150,'[7]Quarter of Maturity Dist'!$A$1:$C$27,3,FALSE),0) -> 5113478.81 | I150: 0.01875869595 | J150: 5793495.32 | M150: 0.01739977274 | N150: 6468589 | Q150: 0.01900083813 | R150: 7604568.56
A151: Q12023 | B151: 2023Q1 | E151: 0.09189960172 | F151: =IFERROR(VLOOKUP($A151,'[7]Quarter of Maturity Dist'!$A$1:$C$27,3,FALSE),0) -> 26256322.5 | I151: 0.08765424045 | J151: 27071414.41 | M151: 0.1027111576 | N151: 38184192.08 | Q151: 0.1013513525 | R151: 40563121.64
A152: Q22023 | B152: 2023Q2 | E152: 0.05878926486 | F152: =IFERROR(VLOOKUP($A152,'[7]Quarter of Maturity Dist'!$A$1:$C$27,3,FALSE),0) -> 16796480.82 | I152: 0.06583389406 | J152: 20332349.23 | M152: 0.06222954372 | N152: 23134632.16 | Q152: 0.06082467275 | R152: 24343420.58
A153: Q32023 | B153: 2023Q3 | E153: 0.05305677116 | F153: =IFERROR(VLOOKUP($A153,'[7]Quarter of Maturity Dist'!$A$1:$C$27,3,FALSE),0) -> 15158669.55 | I153: 0.05630592467 | J153: 17389700.86 | M153: 0.05293741495 | N153: 19680163.94 | Q153: 0.05222037723 | R153: 20899785.37
A154: Q42023 | B154: 2023Q4 | E154: 0.06243135129 | F154: =IFERROR(VLOOKUP($A154,'[7]Quarter of Maturity Dist'!$A$1:$C$27,3,FALSE),0) -> 17837048.94 | I154: 0.06062921919 | J154: 18724920.89 | M154: 0.0574029196 | N154: 21340272.65 | Q154: 0.05972607291 | R154: 23903735.88
A155: Q12024 | B155: 2024Q1 | E155: 0.1451349199 | F155: =IFERROR(VLOOKUP($A155,'[7]Quarter of Maturity Dist'!$A$1:$C$27,3,FALSE),0) -> 41466004.1 | I155: 0.1397230114 | J155: 43152499.23 | M155: 0.1425248865 | N155: 52985457.16 | Q155: 0.1424527051 | R155: 57012819.88
A156: Q22024 | B156: 2024Q2 | E156: 0.05068505123 | F156: =IFERROR(VLOOKUP($A156,'[7]Quarter of Maturity Dist'!$A$1:$C$27,3,FALSE),0) -> 14481053.52 | I156: 0.05137467844 | J156: 15866719.09 | M156: 0.04956055879 | N156: 18424774.29 | Q156: 0.04896635646 | R156: 19597452.08
A157: Q32024 | B157: 2024Q3 | E157: 0.06522991984 | F157: =IFERROR(VLOOKUP($A157,'[7]Quarter of Maturity Dist'!$A$1:$C$27,3,FALSE),0) -> 18636618.44 | I157: 0.06616120836 | J157: 20433438.02 | M157: 0.06189523051 | N157: 23010346.93 | Q157: 0.06069754129 | R157: 24292539.67
A158: Q42024 | B158: 2024Q4 | E158: 0.10315559 | F158: =IFERROR(VLOOKUP($A158,'[7]Quarter of Maturity Dist'!$A$1:$C$27,3,FALSE),0) -> 29472232.62 | I158: 0.09948352308 | J158: 30724807.68 | M158: 0.09227785731 | N158: 34305478.68 | Q158: 0.09174362785 | R158: 36717891.23
A159: Q12025 | B159: 2025Q1 | E159: 0.1750941252 | F159: =IFERROR(VLOOKUP($A159,'[7]Quarter of Maturity Dist'!$A$1:$C$27,3,FALSE),0) -> 50025546.71 | I159: 0.1644295064 | J159: 50782931.72 | M159: 0.1575695925 | N159: 58578519.86 | Q159: 0.1541022266 | R159: 61675223.95
A160: Q22025 | B160: 2025Q2 | E160: 0.07930879764 | F160: =IFERROR(VLOOKUP($A160,'[7]Quarter of Maturity Dist'!$A$1:$C$27,3,FALSE),0) -> 22659046.71 | I160: 0.07827471527 | J160: 24174612.02 | M160: 0.07259923053 | N160: 26989696.42 | Q160: 0.06863276505 | R160: 27468397.11
A161: Q32025 | B161: 2025Q3 | E161: 0.0110184092 | F161: =IFERROR(VLOOKUP($A161,'[7]Quarter of Maturity Dist'!$A$1:$C$27,3,FALSE),0) -> 3148032.2 | I161: 0.01066197668 | J161: 3292878.79 | M161: 0.009468720734 | N161: 3520118.55 | Q161: 0.009054098013 | R161: 3623656.42
A162: Q42025 | B162: 2025Q4 | E162: 0.008454051124 | F162: =IFERROR(VLOOKUP($A162,'[7]Quarter of Maturity Dist'!$A$1:$C$27,3,FALSE),0) -> 2415378.18 | I162: 0.008264416962 | J162: 2552408.82 | M162: 0.007325964505 | N162: 2723521.4 | Q162: 0.007012758143 | R162: 2806665.67
A163: Q12026 | B163: 2026Q1 | E163: 0.01267288059 | F163: =IFERROR(VLOOKUP($A163,'[7]Quarter of Maturity Dist'!$A$1:$C$27,3,FALSE),0) -> 3620725.59 | I163: 0.01174405215 | J163: 3627070.42 | M163: 0.01107271651 | N163: 4116424.58 | Q163: 0.01079789851 | R163: 4321565.13
A164: Q22026 | B164: 2026Q2 | E164: 0.003901670457 | F164: =IFERROR(VLOOKUP($A164,'[7]Quarter of Maturity Dist'!$A$1:$C$27,3,FALSE),0) -> 1114732.99 | I164: 0.004186155471 | J164: 1292865.57 | M164: 0.003578886893 | N164: 1330497.17 | Q164: 0.003324391274 | R164: 1330497.17
E166: =SUM(E141:E164) -> 1 | F166: =SUM(F141:F164) -> 285706597.3 | G166: =F138-F166 -> 0 | I166: 1 | J166: 308843180.6 | K166: 0 | M166: 1 | N166: 371762844.1 | O166: 0 | Q166: 0.9788649521 | R166: 400222795.8 | S166: 5.960464478e-07
A167: 0 to 6 months
A168: 07 to 12 months | B168: Seasoning Distribution
A169: 0 to 6 months | B169: 0 to 6 months | E169: =F169/F$180 -> 0 | F169: =IFERROR(VLOOKUP($A169,'[7]Seasoning Distribution'!$A$1:$C$12,3,FALSE),0) -> 0 | I169: 0 | J169: 0 | M169: 0 | N169: 0 | Q169: 0.052921023 | R169: 21180199.78
A170: 07 to 12 months | B170: 07 to 12 months | E170: =F170/F$180 -> 0 | F170: =IFERROR(VLOOKUP($A170,'[7]Seasoning Distribution'!$A$1:$C$12,3,FALSE),0) -> 0 | I170: 0.06061218692 | J170: 18719660.59 | M170: 0.2548602401 | N170: 94747567.69 | Q170: 0.4094177765 | R170: 163858327.1
A171: 13 to 18 months | B171: 13 to 18 months | E171: 0.2730906389 | F171: =IFERROR(VLOOKUP($A171,'[7]Seasoning Distribution'!$A$1:$C$12,3,FALSE),0) -> 78023797.19 | I171: 0.4229417017 | J171: 130622660.3 | M171: 0.4533244432 | N171: 168529184.3 | Q171: 0.2470282524 | R171: 98866337.8
A172: 19 to 24 months | B172: 19 to 24 months | E172: 0.4739569471 | F172: =IFERROR(VLOOKUP($A172,'[7]Seasoning Distribution'!$A$1:$C$12,3,FALSE),0) -> 135412626.6 | I172: 0.2491087305 | J172: 76935532.63 | M172: 0.004313613599 | N172: 1603641.26 | Q172: 0.02747292235 | R172: 10995289.79
A173: 25 to 30 months | B173: 25 to 30 months | E173: 0.004161786362 | F173: =IFERROR(VLOOKUP($A173,'[7]Seasoning Distribution'!$A$1:$C$12,3,FALSE),0) -> 1189049.82 | I173: 0.02705578396 | J173: 8355994.37 | M173: 0.1821531773 | N173: 67717783.26 | Q173: 0.2389215961 | R173: 95621869.17
A174: 31 to 36 months | B174: 31 to 36 months | E174: 0.164850475 | F174: =IFERROR(VLOOKUP($A174,'[7]Seasoning Distribution'!$A$1:$C$12,3,FALSE),0) -> 47098868.28 | I174: 0.2247471901 | J174: 69411637.01 | M174: 0.08387649015 | N174: 31182162.53 | Q174: 0.0004969225694 | R174: 198879.74
A175: 37 to 42 months | B175: 37 to 42 months | E175: 0.0712324421 | F175: =IFERROR(VLOOKUP($A175,'[7]Seasoning Distribution'!$A$1:$C$12,3,FALSE),0) -> 20351578.65 | I175: 0.0003088760769 | J175: 95394.27 | M175: 0.0001453141455 | N175: 54022.4 | Q175: 0.002875633178 | R175: 1150893.95
A176: 43 to 48 months | B176: 43 to 48 months | E176: 0.0001397573608 | F176: =IFERROR(VLOOKUP($A176,'[7]Seasoning Distribution'!$A$1:$C$12,3,FALSE),0) -> 39929.6 | I176: 0.003234846398 | J176: 999060.25 | M176: 0.01364138004 | N176: 5071358.24 | Q176: 0.0193323172 | R176: 7737234.04
A177: 49 to 54 months | B177: 49 to 54 months | E177: 0.009172443531 | F177: =IFERROR(VLOOKUP($A177,'[7]Seasoning Distribution'!$A$1:$C$12,3,FALSE),0) -> 2620627.63 | I177: 0.01140375295 | J177: 3521971.33 | M177: 0.007525070282 | N177: 2797541.53 | Q177: 0.0015335567 | R177: 613764.35
A178: 55 to 60 months | B178: 55 to 60 months | E178: 0.003395509621 | F178: =IFERROR(VLOOKUP($A178,'[7]Seasoning Distribution'!$A$1:$C$12,3,FALSE),0) -> 970119.5 | I178: 0.0005869313989 | J178: 181269.76 | M178: 0.0001602711808 | N178: 59582.87 | Q178: 0 | R178: 0
A179: 60+ months | B179: 61 to 72 months | E179: 0 | F179: =IFERROR(VLOOKUP($A179,'[7]Seasoning Distribution'!$A$1:$C$12,3,FALSE),0) -> 0 | I179: 0 | J179: 0 | M179: 0 | N179: 0 | Q179: 0 | R179: 0
A180: 61 to 72 months | B180: Total | E180: =SUM(E169:E179) -> 1 | F180: =SUM(F169:F179) -> 285706597.3 | G180: =F166-F180 -> 0 | I180: 1 | J180: 308843180.5 | K180: 0 | M180: 1 | N180: 371762844.1 | O180: 0 | Q180: 1 | R180: 400222795.8 | S180: 0
B182: Remaining Term Distribution
A183: 0 - 12 months | B183: 0-12 Months | E183: =F183/F$189 -> 0.0509124765 | F183: =IFERROR(VLOOKUP($A183,'[7]Remaining Term'!$A$1:$C$10,3,FALSE),0) -> 14546030.42 | I183: 0.04930234497 | J183: 15226693.03 | M183: 0.04094419155 | N183: 15221529.1 | Q183: 0.03144427 | R183: 12584713.65
A184: 13 - 24 months | B184: 13-24 Months | E184: =F184/F$189 -> 0.1979938365 | F184: =IFERROR(VLOOKUP($A184,'[7]Remaining Term'!$A$1:$C$10,3,FALSE),0) -> 56568145.32 | I184: 0.1591232535 | J184: 49144131.7 | M184: 0.1038506264 | N184: 38607804.24 | Q184: 0.08739624699 | R184: 34977970.31
A185: 25 - 36 months | B185: 25-36 Months | E185: 0.302203206 | F185: =IFERROR(VLOOKUP($A185,'[7]Remaining Term'!$A$1:$C$10,3,FALSE),0) -> 86341449.67 | I185: 0.3313620636 | J185: 102338913.6 | M185: 0.2833847164 | N185: 105351908.1 | Q185: 0.2547061431 | R185: 101939204.7
A186: 37 - 48 months | B186: 37-48 Months | E186: 0.4146593854 | F186: =IFERROR(VLOOKUP($A186,'[7]Remaining Term'!$A$1:$C$10,3,FALSE),0) -> 118470922 | I186: 0.4021047982 | J186: 124187324.8 | M186: 0.3595966868 | N186: 133684687 | Q186: 0.3246945979 | R186: 129950179.8
A187: 49 - 60 months | B187: 49-60 Months | E187: 0.03423109562 | F187: =IFERROR(VLOOKUP($A187,'[7]Remaining Term'!$A$1:$C$10,3,FALSE),0) -> 9780049.85 | I187: 0.05810753978 | J187: 17946117.4 | M187: 0.2034266237 | N187: 75626460.19 | Q187: 0.2852533057 | R187: 114164875.5
A188: 60+ Months | B188: 60+ Months | E188: 0 | F188: =IFERROR(VLOOKUP($A188,'[7]Remaining Term'!$A$1:$C$10,3,FALSE),0) -> 0 | I188: 0 | J188: 0 | M188: 0.008797155181 | N188: 3270455.43 | Q188: 0.01650543627 | R188: 6605851.85
E189: =SUM(E183:E188) -> 1 | F189: =SUM(F183:F188) -> 285706597.3 | G189: =F180-F189 -> 0 | I189: 1 | J189: 308843180.6 | K189: 0 | M189: 1 | N189: 371762844.1 | O189: 0 | Q189: 1 | R189: 400222795.8 | S189: 0
B191: Origination LVR Distribution
A192: 01. 10% to 20% | B192: 10% to 20% | E192: =F192/F$208 -> 0.0003434796429 | F192: =IFERROR(VLOOKUP($A192,'[7]LVR Band'!$A$1:$C$18,3,FALSE),0) -> 98134.4 | I192: 0.0003495856046 | J192: 107967.13 | M192: 0.0004353546961 | N192: 161848.7 | Q192: 0.0004308100434 | R192: 172420
A193: 02. 21% to 30% | B193: 21% to 30% | E193: 0.003696301066 | F193: =IFERROR(VLOOKUP($A193,'[7]LVR Band'!$A$1:$C$18,3,FALSE),0) -> 1056057.6 | I193: 0.003472147088 | J193: 1072348.95 | M193: 0.004531342244 | N193: 1684584.68 | Q193: 0.004500772118 | R193: 1801311.6
A194: 03. 31% to 40% | B194: 31% to 40% | E194: 0.02139250598 | F194: =IFERROR(VLOOKUP($A194,'[7]LVR Band'!$A$1:$C$18,3,FALSE),0) -> 6111980.09 | I194: 0.02077429169 | J194: 6415998.32 | M194: 0.02378990886 | N194: 8844204.18 | Q194: 0.02376140218 | R194: 9509854.81
A195: 04. 41% to 50% | B195: 41% to 50% | E195: 0.05965176706 | F195: =IFERROR(VLOOKUP($A195,'[7]LVR Band'!$A$1:$C$18,3,FALSE),0) -> 17042903.39 | I195: 0.05898706378 | J195: 18217752.39 | M195: 0.0653530598 | N195: 24295839.38 | Q195: 0.0634499951 | R195: 25394134.43
A196: 05. 51% to 60% | B196: 51% to 60% | E196: 0.1325227184 | F196: =IFERROR(VLOOKUP($A196,'[7]LVR Band'!$A$1:$C$18,3,FALSE),0) -> 37862614.93 | I196: 0.1311176977 | J196: 40494806.78 | M196: 0.1344512128 | N196: 49983965.27 | Q196: 0.1322238801 | R196: 52919010.94
A197: 06. 61% to 70% | B197: 61% to 70% | E197: 0.1596333698 | F197: =IFERROR(VLOOKUP($A197,'[7]LVR Band'!$A$1:$C$18,3,FALSE),0) -> 45608306.9 | I197: 0.1612731412 | J197: 49808109.88 | M197: 0.1622175901 | N197: 60306472.65 | Q197: 0.1610170944 | R197: 64442711.67
A198: 07. 71% to 80% | B198: 71% to 80% | E198: 0.1971022633 | F198: =IFERROR(VLOOKUP($A198,'[7]LVR Band'!$A$1:$C$18,3,FALSE),0) -> 56313416.96 | I198: 0.1970978047 | J198: 60872312.87 | M198: 0.1935757947 | N198: 71964288 | Q198: 0.1902783321 | R198: 76153726.06
A199: 08. 81% to 90% | B199: 81% to 90% | E199: 0.183252878 | F199: =IFERROR(VLOOKUP($A199,'[7]LVR Band'!$A$1:$C$18,3,FALSE),0) -> 52356556.23 | I199: 0.1830082974 | J199: 56520864.64 | M199: 0.1749360841 | N199: 65034736.14 | Q199: 0.1770275695 | R199: 70850468.81
A200: 09. 91% to 100% | B200: 91% to 100% | E200: 0.2424047168 | F200: =IFERROR(VLOOKUP($A200,'[7]LVR Band'!$A$1:$C$18,3,FALSE),0) -> 69256626.79 | I200: 0.2439199708 | J200: 75333019.59 | M200: 0.2407096527 | N200: 89486905.08 | Q200: 0.2473101445 | R200: 98979157.44
A201: > 100% | B201: > 100% | E201: 0 | F201: =IFERROR(VLOOKUP($A201,'[7]LVR Band'!$A$1:$C$18,3,FALSE),0) -> 0 | I201: 0 | J201: 0 | M201: 0 | N201: 0 | Q201: 0 | R201: 0
E202: =SUM(E192:E201) -> 1 | F202: =SUM(F192:F201) -> 285706597.3 | G202: =F189-F202 -> 0 | I202: 1 | J202: 308843180.5 | K202: 0 | M202: 1 | N202: 371762844.1 | O202: 0 | Q202: 1 | R202: 400222795.8 | S202: 0
B204: New v Used
A205: New | B205: New | E205: =F205/F$208 -> 0.8575749509 | F205: =IFERROR(VLOOKUP($A205,'[7]New v Used'!$A$1:$C$9,3,FALSE),0) -> 245014821.2 | I205: 0.8572832787 | J205: 264766094.4 | M205: 0.856030148 | N205: 318240202.4 | Q205: 0.8507711004 | R205: 340497988.4
A206: USed | B206: Used | E206: =F206/F$208 -> 0.1424250491 | F206: =IFERROR(VLOOKUP($A206,'[7]New v Used'!$A$1:$C$9,3,FALSE),0) -> 40691776.14 | I206: 0.1427167213 | J206: 44077086.11 | M206: 0.143969852 | N206: 53522641.64 | Q206: 0.1492288996 | R206: 59724807.41
A207: Used
E208: =SUM(E205:E206) -> 1 | F208: =SUM(F205:F206) -> 285706597.3 | G208: =F202-F208 -> 0 | I208: 1 | J208: 308843180.6 | K208: 0 | M208: 1 | N208: 371762844.1 | O208: 0 | Q208: 1 | R208: 400222795.8 | S208: 0
B210: Contract Type
A211: Finance Lease | B211: Finance Lease | E211: =F211/F$214 -> 0.005402395236 | F211: =IFERROR(VLOOKUP($A211,'[7]Loan Type'!$A$1:$C$10,3,FALSE),0) -> 1543499.96 | I211: 0.007992537655 | J211: 2468440.75 | M211: 0.01023429431 | N211: 3804730.36 | Q211: 0.01217326607 | R211: 4872018.58
A212: Goods Mortgage | B212: Goods Mortgage | E212: =F212/F$214 -> 0.9945976048 | F212: =IFERROR(VLOOKUP($A212,'[7]Loan Type'!$A$1:$C$10,3,FALSE),0) -> 284163097.3 | I212: 0.9920074623 | J212: 306374739.8 | M212: 0.9897657057 | N212: 367958113.7 | Q212: 0.9878267339 | R212: 395350777.2
A213: Hire Purchase | B213: Hire Purchase | E213: 0 | F213: =IFERROR(VLOOKUP($A213,'[7]Loan Type'!$A$1:$C$10,3,FALSE),0) -> 0 | I213: 0 | J213: 0 | M213: 0 | N213: 0 | Q213: 0 | R213: 0
E214: =SUM(E211:E213) -> 1 | F214: =SUM(F211:F213) -> 285706597.3 | G214: =F208-F214 -> 0 | I214: 1 | J214: 308843180.5 | K214: 8.940696716e-07 | M214: 1 | N214: 371762844.1 | O214: 0 | Q214: 1 | R214: 400222795.8 | S214: 0
... 30 more rows
